[Event "86th Tata Steel Masters 2024"]
[Site "Wijk aan Zee"]
[Date "2024.01.23"]
[Round "9.7"]
[White "Praggnanandhaa R"]
[Black "Ju, Wenjun"]
[Result "1-0"]
[ECO "C58"]
[WhiteElo "2743"]
[BlackElo "2549"]
[Annotator "GM Rafael Leitão"]
[PlyCount "65"]
[EventDate "2024.??.??"]
[TimeControl "40/6000+30:3000+30"]

{[%evp 0,65,19,11,11,5,11,11,17,-14,-14,-21,-18,-21,-21,-5,-6,-49,-49,-41,42,
10,5,-39,32,21,22,14,29,8,6,9,31,-7,-4,7,38,30,77,60,56,40,69,36,71,61,84,65,
100,83,90,55,148,170,199,228,238,345,341,349,349,359,374,286,466,441,739,739]} 
1. e4 e5 2. Nf3 Nc6 3. Bc4 Nf6 4. Ng5 {De vez em quando, jogadores de Brancas
apimentam as coisas com esse lance antigo e perigoso do cavalo, tornando a
partida muito mais divertida do que as posições mais lentas após 4.d3.} d5
5. exd5 Na5 {Este lance é mais ou menos automático em partidas clássicas de
elite, mas se você está procurando diversão em suas partidas de blitz,
você pode querer investigar os lances 5...b5 ou 5...Cd4.} (5... Nxd5 $6 {
[%c_effect d5;square;d5;type;Inaccuracy;persistent;true] Isto é perigoso e
muito conhecido.}) (5... b5 $5 {[%c_effect b5;square;b5;type;Interesting;
persistent;true]}) (5... Nd4 $5 {[%c_effect d4;square;d4;type;Interesting;
persistent;true]} 6. c3 b5 (6... h6)) 6. Bb5+ c6 (6... Bd7 $5 {[%c_effect d7;
square;d7;type;Interesting;persistent;true] também é interessante,
principalmente porque pode pegar seu oponente de surpresa.} 7. Qe2 Be7 {
com compensação em uma posição ainda altamente teórica.} (7... Bd6)) 7.
dxc6 bxc6 8. Bd3 Nd5 (8... Ng4 $5 {[%c_effect g4;square;g4;type;Interesting;
persistent;true] também é possível e já joguei esse lance em muitas
partidas online que normalmente perco, mas a culpa não é do pobre cavalo,
mas sim da mente inepta que o dirige, pois eu realmente não entendo as
posições que surgem neste sistema, são muito caóticas para o meu estilo
temeroso.}) 9. h4 {Muito menos comum que 9.Cf3, mas como foi jogado por
Firouzja em uma partida clássica recentemente, imagino que Ju sabia disso.} (
9. Nf3 {é a abordagem normal.}) 9... Qc7 {Uma das várias possibilidades
promissoras para as Negras.} (9... h6 {é considerada uma das melhores
opções das Negras.} 10. Qh5 Qf6 11. Ne4 Qe6 12. b3 {em Firouzja-Caruana,
Sinquefield Cup Saint Louis 2023. Essa partida terminou com uma vitória
espetacular de Caruana depois de muitas reviravoltas.}) (9... Be7 10. Qf3 f5
11. Bxf5 Rf8 12. Qh5+ g6 13. Bxg6+ hxg6 14. Qxg6+ Kd7 15. d3 {Com completo
caos. Minha mão treme até mesmo percorrendo essas variantes com o
mouse—imagine se eu estivesse jogando.}) 10. b3 {Um novo lance que foi
jogado rapidamente pelas Brancas.} (10. Nc3 {geralmente é jogado. A seguinte
linha de empate ilustra as possibilidades para ambos os lados.} h6 11. Nxd5
cxd5 12. Qh5 Bc5 $1 {[%c_effect c5;square;c5;type;GreatFind;persistent;true]}
13. b4 {Necessário para desviar o bispo do ataque em f2.} Bxb4 14. Nxf7 O-O
15. Nxe5 Rf5 $1 {[%c_effect f5;square;f5;type;GreatFind;persistent;true]} 16.
Qe8+ Rf8 17. Qh5 {com um empate por repetição. Comentaristas adoram linhas
de empate aleatórias, mas esta foi realmente jogada em algumas partidas por
correspondência.}) 10... h6 {Remover o cavalo de sua posição perigosa em g5
é a opção mais natural.} 11. Ne4 (11. Qh5 $4 {[%c_effect h5;square;h5;type;
Blunder;persistent;true] não funciona agora que o peão de f7 está protegido.
} Nf4) 11... f5 {As Negras continuam perseguindo o cavalo. Existem outras
opções interessantes.} (11... Be7 {continua o desenvolvimento e é
perfeitamente jogável.}) (11... Nf4 {também é interessante:} 12. Bf1 Be7 13.
g3 Ne6 14. d3 O-O 15. g4 $1 {[%c_effect g4;square;g4;type;GreatFind;persistent;
true] Um lance difícil e necessário para preservar o cavalo em e4. A
posição é difícil de entender e jogar. Minha única convicção é que as
Negras têm uma boa compensação pelo peão.}) 12. Nec3 Nf6 (12... Nf4 $1 {
[%c_effect f4;square;f4;type;GreatFind;persistent;true] é mais preciso:} 13.
Bf1 Bb7 14. g3 c5 $1 {[%c_effect c5;square;c5;type;GreatFind;persistent;true]
Atacando a torre em h1.} 15. Rg1 Ne6 16. Qh5+ Qf7 17. Qxf7+ Kxf7 {Apesar da
troca de damas, a compensação das Negras pelo peão continua excelente.}) 13.
Bb2 (13. Ba3 $2 {[%c_effect a3;square;a3;type;Mistake;persistent;true] tem uma
boa ideia por trás—trocar peças enquanto está com um peão a mais, mas é
muito lento:} e4 14. Be2 Bxa3 15. Nxa3 O-O {com excelente compensação para
as Negras.}) (13. Be2 $1 {[%c_effect e2;square;e2;type;GreatFind;persistent;
true] é o melhor lance, antecipando o ataque com o bispo com e5-e4 e
preparando um xeque em h5.} Kf7 (13... Bd6 $6 {[%c_effect d6;square;d6;type;
Inaccuracy;persistent;true]} 14. Bh5+ {e o rei negro está numa situação um
tanto desconfortável.}) (13... g6 14. Bb2 {com chances de vantagem para as
Brancas.} (14. d4 $5 {[%c_effect d4;square;d4;type;Interesting;persistent;true]
também é possível.})) 14. Bb2 {Esta é uma versão melhorada para as
Brancas em comparação com a posição da partida.}) 13... Bd6 {
Praggnanandhaa disse que sentiu que este lance foi impreciso. Ele não disse
qual lance considerou melhor, mas talvez 13...Bb4 seja interessante.} (13...
Bb4 $5 {[%c_effect b4;square;b4;type;Interesting;persistent;true] A ideia é
que se 14.a3, então as Brancas perdem a casa para seu cavalo, enquanto 14.Ca3
não funciona nesta posição.} 14. a3 (14. Na3 $2 {[%c_effect a3;square;a3;
type;Mistake;persistent;true]} e4 15. Qe2 $2 {[%c_effect e2;square;e2;type;
Mistake;persistent;true]} Qe7 $1 {[%c_effect e7;square;e7;type;GreatFind;
persistent;true] Com o bispo em b4, isso ataca tanto o bispo em d3 quanto o
cavalo em a3: as Negras ganham uma peça.}) 14... Bd6 15. b4 Nb7 16. Bc4 {
com jogo de dois gumes.}) 14. Na3 e4 15. Qe2 O-O (15... Qe7 16. Nc4 $1 {
[%c_effect c4;square;c4;type;GreatFind;persistent;true] Essa é a questão.})
16. Ba6 $1 {[%c_effect a6;square;a6;type;GreatFind;persistent;true] Os
últimos lances de ambos os lados foram muito lógicos, completando o
desenvolvimento e removendo uma peça de uma posição atacada. Agora vem um
erro.} Be6 $2 {[%c_effect e6;square;e6;type;Mistake;persistent;true] Após
este lance, as Negras não encontram mais compensação.} (16... Bxa6 17. Qxa6
Ng4 $1 {[%c_effect g4;square;g4;type;GreatFind;persistent;true] Esta
sequência era necessária. Agora, as Brancas não podem completar o
desenvolvimento devido à pressão sobre o peão de f2. A ideia principal do
jogo das Negras é que se as Brancas defendem este peão com a torre em f1,
então o cavalo vai para h2 e depois volta para g4, com uma oferta de empate.}
18. Nc4 (18. Rf1 Nh2 19. Rh1 Ng4 {Isso ilustra com uma variante o que acabei
de descrever em palavras.}) 18... Nxc4 19. Qxc4+ Kh7 20. Rf1 Nh2 $1 {
[%c_effect h2;square;h2;type;GreatFind;persistent;true]} 21. Rh1 Ng4 {As
Brancas não têm nada melhor do que aceitar uma repetição de lance, caso
contrário as Negras têm uma iniciativa perigosa.}) 17. Nc4 {É uma pena
trocar o notoriamente fraco cavalo em a5, mas, encaremos a realidade, o cavalo
branco em a3 também não era tão bom. Além disso, a troca de peças
favorece o jogador com vantagem material.} Bb4 (17... Nxc4 18. Bxc4 {é muito
confortável para as Brancas.}) 18. O-O-O Nb7 $6 {[%c_effect b7;square;b7;type;
Inaccuracy;persistent;true] Uma tentativa de melhorar o cavalo, mas isso piora
ainda mais as coisas.} (18... Rae8 {é melhor.}) 19. Bxb7 {As Brancas têm
várias opções, mas sua escolha é boa.} Qxb7 20. f3 $1 {[%c_effect f3;
square;f3;type;GreatFind;persistent;true]} Rae8 (20... Nh5 {prepara um ataque
duplo em g3, mas as Brancas podem simplesmente jogar} 21. Rhe1 {com uma grande
vantagem.}) 21. Ne5 (21. a3 {também é uma boa opção, e talvez até mais
precisa, mas o lance escolhido funciona muito bem na partida.}) 21... c5 (21...
Nh5 $1 {[%c_effect h5;square;h5;type;GreatFind;persistent;true] é uma
tentativa melhor, embora as Brancas ainda estejam claramente melhor depois de}
22. Qf2) (21... Bxb3 $2 {[%c_effect b3;square;b3;type;Mistake;persistent;true]
É importante mencionar que este lance tático não funciona:} 22. axb3 Rxe5
23. Nxe4 $1 {[%c_effect e4;square;e4;type;GreatFind;persistent;true]} fxe4 24.
Bxe5 {com uma vitória.}) 22. Rhe1 exf3 (22... Bxb3 {perde de novo:} 23. axb3
Rxe5 24. Nxe4) (22... Kh7 {é uma sugestão do computador, mas não faz muito
sentido para a mente humana. A ideia é} 23. fxe4 Bxb3 24. axb3 Rxe5 {Mesmo
aqui, as Brancas têm vários bons lances para obter uma vantagem avassaladora.
Editado: após escrever estas palavras, assisti à entrevista pós-jogo de
Praggnanandhaa e ele mencionou exatamente essa linha, então talvez eu devesse
dizer que a variante não faz sentido para minha mente, mas faz para alguém
que calcula tão bem quanto o prodígio indiano.}) 23. gxf3 Nh5 24. Rg1 {
As Brancas têm muitos lances bons. Praggnanandhaa decide usar a coluna g.} c4
{Isto perde outro peão, mas suspeito que as Negras não tinham muita
esperança de salvar a partida neste momento.} 25. Nxc4 Qe7 26. a3 Bxc3 27.
Bxc3 Qxh4 28. Qe5 $1 {[%c_effect e5;square;e5;type;GreatFind;persistent;true]
A pressão em g7 decide a partida.} Qe7 29. Rde1 Qd7 30. Nd6 Re7 31. Qh2 $1 {
[%c_effect h2;square;h2;type;GreatFind;persistent;true] Uma solução elegante.
} Nf6 32. Qxh6 Qxd6 33. Bxf6 {O jovem GM indiano tem demonstrado um progresso
notável ao longo do último ano. Em minha opinião, ele entra no Torneio de
Candidatos como um dos favoritos. Precisão CHESS.COM: Brancas 93.2% Pretas 83.
7%} 1-0